fUST/lending_fUST_20240720
["ID","MTS","AMOUNT","RATE_DAILY","PERIOD"]
[332665393,1721413767251,-539.59,0.00016438,2]
[332665394,1721413767288,-539.59,0.00016438,2]
[332665395,1721413767321,-539.59,0.00016438,2]
[332665396,1721413767352,-539.59,0.00016438,2]
[332665397,1721413767384,-539.59,0.00016438,2]
[332665398,1721413767420,-500.0,0.00016438,2]
[332665399,1721413767454,-500.0,0.00016438,2]
[332665400,1721413767487,-500.0,0.00016438,2]
[332665401,1721413767520,-500.0,0.00016438,2]
[332665402,1721413767553,-674.48,0.00016438,2]
[332665403,1721413767586,-500.0,0.00016438,2]
[332665404,1721413767622,-500.0,0.00016438,2]
[332665405,1721413767655,-1819.04,0.00016438,2]
[332665406,1721413767688,-704.49,0.00016438,2]
[332665407,1721413767720,-1152.53,0.00016438,2]
[332665408,1721413767753,-768.52,0.00016438,2]
[332665409,1721413767786,-500.0,0.00016438,2]
[332665410,1721413767819,-500.0,0.00016438,2]
[332665411,1721413767853,-3033.05,0.00016438,2]
[332665412,1721413767889,-500.0,0.00016438,2]
[332665414,1721413767924,-577.91,0.00016438,2]
[332665415,1721413767959,-308.01984489,0.00016438,2]
[332665416,1721413767991,-500.0,0.00016438,2]
[332665417,1721413768024,-500.0,0.00016438,2]
[332665418,1721413768058,-500.0,0.00016438,2]
[332665419,1721413768090,-500.0,0.00016438,2]
[332665420,1721413768127,-1344.38,0.00016438,2]
[332665421,1721413768160,-500.0,0.00016438,2]
[332665422,1721413768191,-500.0,0.00016438,2]
[332665423,1721413768224,-500.0,0.00016438,2]
[332665424,1721413768255,-1021.64,0.00016438,2]
[332665425,1721413768290,-500.0,0.00016438,2]
[332665426,1721413768324,-500.0,0.00016438,2]
[332665427,1721413768357,-500.0,0.00016438,2]
[332665428,1721413768392,-500.0,0.00016438,2]
[332665429,1721413768425,-169.08451912,0.00016438,2]
[332665430,1721413768458,-508.15443658,0.00016438,2]
[332665431,1721413768490,-500.0,0.00016438,2]
[332665432,1721413768523,-501.06700876,0.00016438,2]
[332665433,1721413768554,-469.18571943,0.00016438,2]
[332665434,1721413768586,-500.0,0.00016438,2]
[332665435,1721413768619,-500.0,0.00016438,2]
[332665436,1721413768653,-279.18303732,0.00016438,2]
[332665437,1721413768685,-517.36644659,0.00016438,2]
[332665438,1721413768717,-500.0,0.00016438,2]
[332665439,1721413768752,-785.06,0.00016438,2]
[332665440,1721413768786,-645.71787389,0.00016438,2]
[332665441,1721413768819,-506.47722316,0.00016438,2]
[332665442,1721413768853,-500.0,0.00016438,2]
[332665443,1721413768887,-500.0,0.00016438,2]
[332665444,1721413768930,-500.0,0.00016438,2]
[332665445,1721413768966,-500.0,0.00016438,2]
[332665446,1721413769000,-500.0,0.00016438,2]
[332665447,1721413769036,-500.0,0.00016438,2]
[332665448,1721413769071,-500.0,0.00016438,2]
[332665449,1721413769105,-500.0,0.00016438,2]
[332665450,1721413769140,-500.0,0.00016438,2]
[332665451,1721413769176,-500.0,0.00016438,2]
[332665452,1721413769210,-500.0,0.00016438,2]
[332665453,1721413769244,-484.1569262,0.00016438,2]
[332665454,1721413769282,-3150.76,0.00016438,2]
[332665455,1721413769314,-500.0,0.00016438,2]
[332665456,1721413769346,-584.01,0.00016438,2]
[332665457,1721413769380,-500.0,0.00016438,2]
[332665458,1721413769414,-2171.07,0.00016438,2]
[332665459,1721413769446,-1261.33,0.00016438,2]
[332665460,1721413769479,-500.0,0.00016438,2]
[332665461,1721413769511,-500.0,0.00016438,2]
[332665462,1721413769548,-500.0,0.00016438,2]
[332665463,1721413769581,-500.0,0.00016438,2]
[332665464,1721413769614,-500.0,0.00016438,2]
[332665465,1721413769649,-978.33,0.00016438,2]
[332665466,1721413769682,-2350.93,0.00016438,2]
[332665467,1721413769716,-733.09,0.00016438,2]
[332665468,1721413769751,-500.0,0.00016438,2]
[332665469,1721413769786,-2666.54,0.00016438,2]
[332665470,1721413769819,-414.21224949,0.00016438,2]
[332665471,1721413769853,-571.92,0.00016438,2]
[332665473,1721413769883,-500.0,0.00016438,2]
[332665474,1721413769921,-500.0,0.00016438,2]
[332665475,1721413769955,-500.0,0.00016438,2]
[332665476,1721413769987,-624.01,0.00016438,2]
[332665477,1721413770021,-572.59,0.00016438,2]
[332665478,1721413770052,-500.0,0.00016438,2]
[332665479,1721413770085,-500.0,0.00016438,2]
[332665480,1721413770118,-500.0,0.00016438,2]
[332665481,1721413770152,-527.56,0.00016438,2]
[332665482,1721413770183,-243.27925045,0.00016438,2]
[332665483,1721413770215,-500.0,0.00016438,2]
[332665484,1721413770248,-909.43,0.00016438,2]
[332665485,1721413770283,-500.0,0.00016438,2]
[332665486,1721413770316,-504.32360626,0.00016438,2]
[332665487,1721413770350,-500.0,0.00016438,2]
[332665488,1721413770383,-1827.86,0.00016438,2]
[332665489,1721413770418,-2629.48,0.00016438,2]
[332665490,1721413770451,-500.0,0.00016438,2]
[332665491,1721413770484,-779.65,0.00016438,2]
[332665492,1721413770515,-3388.23,0.00016438,2]
[332665493,1721413770546,-500.0,0.00016438,2]
[332665494,1721413770577,-500.0,0.00016438,2]
[332665495,1721413770608,-672.88,0.00016438,2]
[332665496,1721413770639,-2401.06,0.00016438,2]
[332665497,1721413770671,-1501.53,0.00016438,2]
[332665498,1721413770704,-505.04670102,0.00016438,2]
[332665499,1721413770734,-4114.5,0.00016438,2]
[332665500,1721413770765,-1310.9,0.00016438,2]
[332665501,1721413770798,-500.0,0.00016438,2]
[332665502,1721413770831,-500.0,0.00016438,2]
[332665503,1721413770863,-500.0,0.00016438,2]
[332665504,1721413770894,-500.0,0.00016438,2]
[332665505,1721413770927,-500.0,0.00016438,2]
[332665506,1721413770960,-500.0,0.00016438,2]
[332665507,1721413770993,-500.0,0.00016438,2]
[332665508,1721413771024,-500.0,0.00016438,2]
[332665509,1721413771056,-500.0,0.00016438,2]
[332665510,1721413771086,-199.81853992,0.00016438,2]
[332665511,1721413771117,-877.19,0.00016438,2]
[332665512,1721413771149,-500.0,0.00016438,2]
[332665513,1721413771182,-783.6,0.00016438,2]
[332665514,1721413771213,-500.0,0.00016438,2]
[332665515,1721413771244,-500.0,0.00016438,2]
[332665516,1721413771276,-500.0,0.00016438,2]
[332665517,1721413771308,-500.0,0.00016438,2]
[332665518,1721413771338,-905.88,0.00016438,2]
[332665520,1721413771556,-507.12135869,0.00016438,2]
[332665521,1721413771588,-500.0,0.00016438,2]
[332665522,1721413771620,-558.96,0.00016438,2]
[332665523,1721413771652,-662.37,0.00016438,2]
[332665524,1721413771685,-11522.96,0.00016438,2]
[332665525,1721413771716,-500.0,0.00016438,2]
[332665526,1721413771750,-744.56,0.00016438,2]
[332665527,1721413771782,-500.0,0.00016438,2]
[332665529,1721413771814,-500.0,0.00016438,2]
[332665530,1721413771848,-2989.25,0.00016438,2]
[332665531,1721413771880,-500.0,0.00016438,2]
[332665532,1721413771913,-500.0,0.00016438,2]
[332665533,1721413771947,-504.00214773,0.00016438,2]
[332665534,1721413771978,-761.65,0.00016438,2]
[332665535,1721413772011,-500.0,0.00016438,2]
[332665536,1721413772044,-762.21,0.00016438,2]
[332665537,1721413772076,-723.92,0.00016438,2]
[332665538,1721413772108,-197.01076395,0.00016438,2]
[332665539,1721413772144,-544.43,0.00016438,2]
[332665540,1721413772185,-500.0,0.00016438,2]
[332665541,1721413772219,-579.33651427,0.00016438,2]
[332665542,1721413772250,-562.89,0.00016438,2]
[332665543,1721413772285,-500.0,0.00016438,2]
[332665544,1721413772317,-602.39,0.00016438,2]
[332665545,1721413772349,-500.0,0.00016438,2]
[332665546,1721413772381,-515.92719608,0.00016438,2]
[332665547,1721413772414,-562.9,0.00016438,2]
[332665548,1721413772446,-1998.16,0.00016438,2]
[332665549,1721413772478,-2023.86,0.00016438,2]
[332665550,1721413772515,-1000.0,0.00016438,2]
[332665551,1721413772547,-500.0,0.00016438,2]
[332665552,1721413772581,-1000.0,0.00016438,2]
[332665553,1721413772615,-1000.0,0.00016438,2]
[332665554,1721413772650,-1000.0,0.00016438,2]
[332665555,1721413772683,-500.0,0.00016438,2]
[332665556,1721413772716,-1000.0,0.00016438,2]
[332665557,1721413772748,-1000.0,0.00016438,2]
[332665558,1721413772781,-1000.0,0.00016438,2]
[332665559,1721413772815,-1000.0,0.00016438,2]
[332665560,1721413772851,-500.0,0.00016438,2]
[332665561,1721413772884,-1000.0,0.00016438,2]
[332665562,1721413772919,-1000.0,0.00016438,2]
[332665563,1721413772954,-1000.0,0.00016438,2]
[332665564,1721413772986,-1000.0,0.00016438,2]
[332665565,1721413773020,-1000.0,0.00016438,2]
[332665566,1721413773053,-1000.0,0.00016438,2]
[332665567,1721413773086,-1000.0,0.00016438,2]
[332665568,1721413773118,-1000.0,0.00016438,2]
[332665569,1721413773151,-1000.0,0.00016438,2]
[332665570,1721413773182,-1000.0,0.00016438,2]
[332665571,1721413773216,-1000.0,0.00016438,2]
[332665572,1721413773249,-1000.0,0.00016438,2]
[332665573,1721413773283,-500.0,0.00016438,2]
[332665574,1721413773315,-1000.0,0.00016438,2]
[332665575,1721413773349,-1000.0,0.00016438,2]
[332665576,1721413773383,-1000.0,0.00016438,2]
[332665577,1721413773419,-500.0,0.00016438,2]
[332665578,1721413773452,-1000.0,0.00016438,2]
[332665579,1721413773486,-500.0,0.00016438,2]
[332665580,1721413773520,-1000.0,0.00016438,2]
[332665581,1721413773554,-1000.0,0.00016438,2]
[332665582,1721413773588,-1000.0,0.00016438,2]
[332665583,1721413773622,-1000.0,0.00016438,2]
[332665584,1721413773656,-1000.0,0.00016438,2]
[332665585,1721413773689,-1000.0,0.00016438,2]
[332665586,1721413773722,-1000.0,0.00016438,2]
[332665587,1721413773756,-1000.0,0.00016438,2]
[332665588,1721413773793,-1000.0,0.00016438,2]
[332665589,1721413773828,-638.21500426,0.00016438,2]
[332665590,1721413773864,-1000.0,0.00016438,2]
[332665591,1721413773900,-1000.0,0.00016438,2]
[332665592,1721413773935,-1000.0,0.00016438,2]
[332665593,1721413773970,-314.79360514,0.00016438,2]
[332665594,1721413774996,-430.56200871,0.00015952,2]
[332665595,1721413775018,-685.20639486,0.00016438,2]
[332665596,1721413775039,-500.0,0.00016438,2]
[332665597,1721413775060,-1000.0,0.00016438,2]
[332665598,1721413775081,-1000.0,0.00016438,2]
[332665599,1721413775103,-1000.0,0.00016438,2]
[332665600,1721413775125,-1000.0,0.00016438,2]
[332665601,1721413775146,-1000.0,0.00016438,2]
[332665602,1721413775170,-1000.0,0.00016438,2]
[332665603,1721413775191,-1000.0,0.00016438,2]
[332665604,1721413775211,-814.62,0.00016438,2]
[332665605,1721413775231,-1000.0,0.00016438,2]
[332665606,1721413775252,-1000.0,0.00016438,2]
[332665607,1721413775274,-1000.0,0.00016438,2]
[332665608,1721413775295,-1000.0,0.00016438,2]
[332665609,1721413775316,-1000.0,0.00016438,2]
[332665610,1721413775337,-1000.0,0.00016438,2]
[332665611,1721413775358,-1000.0,0.00016438,2]
[332665612,1721413775379,-1000.0,0.00016438,2]
[332665613,1721413775401,-500.0,0.00016438,2]
[332665614,1721413775423,-1000.0,0.00016438,2]
[332665615,1721413775447,-1000.0,0.00016438,2]
[332665616,1721413775468,-1000.0,0.00016438,2]
[332665617,1721413775489,-1000.0,0.00016438,2]
[332665618,1721413775510,-1000.0,0.00016438,2]
[332665619,1721413775532,-1000.0,0.00016438,2]
[332665620,1721413775554,-1000.0,0.00016438,2]
[332665621,1721413775575,-1000.0,0.00016438,2]
[332665622,1721413775596,-1000.0,0.00016438,2]
[332665623,1721413775617,-500.0,0.00016438,2]
[332665624,1721413775638,-1000.0,0.00016438,2]
[332665625,1721413775660,-1000.0,0.00016438,2]
[332665626,1721413775682,-1000.0,0.00016438,2]
[332665627,1721413775703,-1000.0,0.00016438,2]
[332665628,1721413775724,-1000.0,0.00016438,2]
[332665629,1721413775745,-1000.0,0.00016438,2]
[332665630,1721413775977,-1000.0,0.00016438,2]
[332665631,1721413775999,-1000.0,0.00016438,2]
[332665632,1721413776020,-696.58389761,0.00016438,2]
[332665633,1721413776716,-303.41610239,0.00016438,2]
[332665634,1721413776737,-500.0,0.00016438,2]
[332665635,1721413776759,-1000.0,0.00016438,2]
[332665636,1721413776781,-1000.0,0.00016438,2]
[332665637,1721413776803,-1000.0,0.00016438,2]
[332665638,1721413776825,-1000.0,0.00016438,2]
[332665639,1721413776847,-1000.0,0.00016438,2]
[332665640,1721413776869,-1000.0,0.00016438,2]
[332665641,1721413776893,-1000.0,0.00016438,2]
[332665642,1721413776915,-1277.68,0.00016438,2]
[332665643,1721413776938,-154.854767,0.00016438,2]
[332665644,1721413776959,-500.0,0.00016438,2]
[332665645,1721413776981,-371.51980599,0.00016438,2]
[332665646,1721413777002,-500.0,0.00016438,2]
[332665647,1721413777023,-500.0,0.00016438,2]
[332665648,1721413777044,-500.0,0.00016438,2]
[332665649,1721413777065,-500.0,0.00016438,2]
[332665650,1721413777086,-500.0,0.00016438,2]
[332665651,1721413777107,-500.0,0.00016438,2]
[332665652,1721413777127,-794.14,0.00016438,2]
[332665653,1721413777148,-500.0,0.00016438,2]
[332665654,1721413777169,-500.0,0.00016438,2]
[332665655,1721413777190,-500.0,0.00016438,2]
[332665656,1721413777213,-558.85881519,0.00016438,2]
[332665657,1721413777234,-2178.92,0.00016438,2]
[332665658,1721413777255,-500.0,0.00016438,2]
[332665659,1721413777278,-500.0,0.00016438,2]
[332665660,1721413777301,-2239.56,0.00016438,2]
[332665661,1721413777325,-500.0,0.00016438,2]
[332665662,1721413777350,-500.0,0.00016438,2]
[332665663,1721413777372,-500.0,0.00016438,2]
[332665664,1721413777393,-503.04863189,0.00016438,2]
[332665665,1721413777415,-500.0,0.00016438,2]
[332665666,1721413777436,-2460.98,0.00016438,2]
[332665667,1721413777457,-500.0,0.00016438,2]
[332665668,1721413777477,-175.45399858,0.00016438,2]
[332665669,1721413777498,-500.0,0.00016438,2]
[332665670,1721413777518,-711.45,0.00016438,2]
[332665671,1721413777540,-3969.54,0.00016438,2]
[332665672,1721413777561,-517.05040019,0.00016438,2]
[332665673,1721413777582,-500.0,0.00016438,2]
[332665674,1721413777606,-500.0,0.00016438,2]
[332665675,1721413777627,-1882.43,0.00016438,2]
[332665676,1721413777649,-500.0,0.00016438,2]
[332665677,1721413777670,-548.558771,0.00016438,2]
[332665678,1721413777690,-1709.08,0.00016438,2]
[332665679,1721413777710,-766.51,0.00016438,2]
[332665680,1721413777731,-500.0,0.00016438,2]
[332665681,1721413777751,-500.0,0.00016438,2]
[332665682,1721413777773,-500.0,0.00016438,2]
[332665683,1721413777794,-500.0,0.00016438,2]
[332665684,1721413777816,-500.0,0.00016438,2]
[332665685,1721413777837,-617.70578733,0.00016438,2]
[332665686,1721413777861,-500.0,0.00016438,2]
[332665687,1721413777883,-1618.12,0.00016438,2]
[332665688,1721413777906,-503.83772313,0.00016438,2]
[332665689,1721413777929,-500.0,0.00016438,2]
[332665690,1721413777952,-500.0,0.00016438,2]
[332665691,1721413777974,-500.0,0.00016438,2]
[332665692,1721413777997,-500.0,0.00016438,2]
[332665693,1721413778019,-500.0,0.00016438,2]
[332665694,1721413778040,-500.0,0.00016438,2]
[332665695,1721413778061,-500.0,0.00016438,2]
[332665696,1721413778084,-500.0,0.00016438,2]
[332665697,1721413778105,-500.0,0.00016438,2]
[332665698,1721413778125,-483.20427487,0.00016438,2]
[332665699,1721413778147,-500.0,0.00016438,2]
[332665700,1721413778168,-500.0,0.00016438,2]
[332665701,1721413778189,-2173.03,0.00016438,2]
[332665702,1721413778211,-500.0,0.00016438,2]
[332665703,1721413778232,-2188.99,0.00016438,2]
[332665704,1721413778253,-1006.8,0.00016438,2]
[332665705,1721413778275,-1343.71,0.00016438,2]
[332665706,1721413778296,-2886.86,0.00016438,2]
[332665707,1721413778316,-4079.9,0.00016438,2]
[332665708,1721413778337,-1194.11,0.00016438,2]
[332665709,1721413778358,-2063.56,0.00016438,2]
[332665710,1721413778379,-1009.33,0.00016438,2]
[332665711,1721413778401,-466.418889,0.00016438,2]
[332665712,1721413778424,-600.66,0.00016438,2]
[332665713,1721413778446,-500.0,0.00016438,2]
[332665714,1721413778467,-500.0,0.00016438,2]
[332665715,1721413778489,-466.418889,0.00016438,2]
[332665716,1721413778510,-466.418889,0.00016438,2]
[332665717,1721413778533,-466.418889,0.00016438,2]
[332665718,1721413778555,-500.0,0.00016438,2]
[332665719,1721413778577,-466.418889,0.00016438,2]
[332665720,1721413778598,-466.418889,0.00016438,2]
[332665721,1721413778619,-1628.01,0.00016438,2]
[332665722,1721413778640,-500.0,0.00016438,2]
[332665723,1721413778661,-748.43,0.00016438,2]
[332665724,1721413778682,-466.418889,0.00016438,2]
[332665725,1721413778703,-466.418889,0.00016438,2]
[332665726,1721413778724,-466.418889,0.00016438,2]
[332665727,1721413778746,-466.418889,0.00016438,2]
[332665728,1721413778769,-466.418889,0.00016438,2]
[332665729,1721413778789,-500.0,0.00016438,2]
[332665730,1721413778811,-503.79,0.00016438,2]
[332665731,1721413778833,-466.418892,0.00016438,2]
[332665732,1721413778857,-500.0,0.00016438,2]
[332665733,1721413778878,-509.05096793,0.00016438,2]
[332665734,1721413778901,-3267.1,0.00016438,2]
[332665735,1721413778923,-9257.27,0.00016438,2]
[332665736,1721413778948,-17277.07,0.00016438,2]
[332665737,1721413778970,-729.41,0.00016438,2]
[332665738,1721413778990,-617.06,0.00016438,2]
[332665739,1721413779010,-510.11,0.00016438,2]
[332665740,1721413779030,-500.0,0.00016438,2]
[332665741,1721413779051,-815.2,0.00016438,2]
[332665742,1721413779072,-1328.12,0.00016438,2]
[332665743,1721413779093,-2811.64,0.00016438,2]
[332665744,1721413779113,-46204.09,0.00016438,2]
[332665745,1721413779134,-500.0,0.00016438,2]
[332665746,1721413779157,-500.0,0.00016438,2]
[332665747,1721413779177,-599.95956449,0.00016438,2]
[332665748,1721413779197,-500.0,0.00016438,2]
[332665749,1721413779218,-5516.49,0.00016438,2]
[332665750,1721413779238,-481.81069992,0.00016438,2]
[332665751,1721413779261,-500.0,0.00016438,2]
[332665752,1721413779282,-500.0,0.00016438,2]
[332665753,1721413779303,-513.95663799,0.00016438,2]
[332665754,1721413779325,-500.0,0.00016438,2]
[332665755,1721413779346,-1222.47,0.00016438,2]
[332665756,1721413779367,-653.92,0.00016438,2]
[332665757,1721413779389,-500.0,0.00016438,2]
[332665758,1721413779411,-500.0,0.00016438,2]
[332665759,1721413779432,-500.0,0.00016438,2]
[332665760,1721413779452,-500.0,0.00016438,2]
[332665761,1721413779474,-2446.74,0.00016438,2]
[332665762,1721413779494,-500.0,0.00016438,2]
[332665763,1721413779515,-3054.33,0.00016438,2]
[332665764,1721413779535,-500.0,0.00016438,2]
[332665765,1721413779556,-540.49,0.00016438,2]
[332665766,1721413779577,-500.0,0.00016438,2]
[332665767,1721413779599,-3454.48638111,0.00016438,2]
[332665792,1721413832406,-2378.8665163,0.00015461,2]
[332665793,1721413832416,-8594.67533989,0.00015527,2]
[332665803,1721413838584,-16305.32466011,0.00015527,2]
[332665804,1721413838594,-3022.2139034,0.0001572,2]
[332665805,1721413838603,-549.87613542,0.00016338,2]
[332665806,1721413838612,-2708.53736941,0.00016347,2]
[332665807,1721413838622,-206.07,0.00016428,7]
[332665808,1721413838632,-300.0,0.00016437,2]
[332665809,1721413838641,-300.0,0.00016437,2]
[332665810,1721413838650,-166.1377719,0.00016437,2]
[332665811,1721413838660,-500.0,0.00016437,2]
[332665812,1721413838669,-388.7402588,0.00016437,2]
[332665813,1721413838679,-500.0,0.00016437,2]
[332665814,1721413838688,-500.0,0.00016437,2]
[332665815,1721413838698,-500.0,0.00016437,2]
[332665816,1721413838707,-353.18029304,0.00016437,2]
[332665817,1721413838717,-500.0,0.00016437,2]
[332665818,1721413838726,-383.71400913,0.00016437,2]
[332665819,1721413838735,-500.0,0.00016437,2]
[332665820,1721413838744,-500.0,0.00016437,2]
[332665821,1721413838754,-500.0,0.00016437,2]
[332665822,1721413838763,-500.0,0.00016437,2]
[332665823,1721413838772,-500.0,0.00016437,2]
[332665824,1721413838782,-500.0,0.00016437,2]
[332665825,1721413838791,-500.0,0.00016437,2]
[332665826,1721413838800,-500.0,0.00016437,2]
[332665827,1721413838809,-544.61291718,0.00016437,2]
[332665828,1721413838818,-500.0,0.00016437,2]
[332665829,1721413838827,-500.0,0.00016437,2]
[332665830,1721413838837,-562.57945678,0.00016437,2]
[332665831,1721413838847,-500.0,0.00016437,2]
[332665832,1721413838856,-500.0,0.00016437,2]
[332665833,1721413838865,-500.0,0.00016437,2]
[332665834,1721413838877,-500.0,0.00016437,2]
[332665835,1721413838886,-500.0,0.00016437,2]
[332665836,1721413838896,-500.0,0.00016437,2]
[332665837,1721413838905,-500.0,0.00016437,2]
[332665838,1721413838915,-500.0,0.00016437,2]
[332665839,1721413838925,-500.0,0.00016437,2]
[332665840,1721413838935,-500.0,0.00016437,2]
[332665841,1721413838945,-500.0,0.00016437,2]
[332665842,1721413838955,-819.34,0.00016438,2]
[332665843,1721413838965,-662.22,0.00016438,2]
[332665844,1721413838974,-1366.55,0.00016438,2]
[332665845,1721413838983,-3739.66,0.00016438,2]
[332665846,1721413838993,-1318.85,0.00016438,2]
[332665847,1721413839002,-925.64,0.00016438,2]
[332665848,1721413839011,-500.0,0.00016438,2]
[332665849,1721413839023,-1156.95,0.00016438,2]
[332665850,1721413839037,-756.45,0.00016438,2]
[332665851,1721413839052,-1676.26,0.00016438,2]
[332665852,1721413839065,-522.26319497,0.00016438,2]
[332665853,1721413839079,-502.85162254,0.00016438,2]
[332665854,1721413839090,-10244.27,0.00016438,2]
[332665855,1721413839101,-502.03563683,0.00016438,2]
[332665856,1721413839113,-500.0,0.00016438,2]
[332665857,1721413839125,-500.0,0.00016438,2]
[332665858,1721413839137,-1105.41,0.00016438,2]
[332665859,1721413839150,-2943.63,0.00016438,2]
[332665860,1721413839163,-2606.96,0.00016438,2]
[332665861,1721413839175,-500.0,0.00016438,2]
[332665862,1721413839186,-253.64818551,0.00016438,2]
[332665863,1721413839200,-500.0,0.00016438,2]
[332665864,1721413839212,-500.0,0.00016438,2]
[332665865,1721413839224,-500.0,0.00016438,2]
[332665866,1721413839236,-500.0,0.00016438,2]
[332665867,1721413839247,-500.0,0.00016438,2]
[332665868,1721413839258,-182.06405552,0.00016438,2]
[332665869,1721413839270,-646.88,0.00016438,2]
[332665870,1721413839283,-1960.48,0.00016438,2]
[332665871,1721413839295,-510.65940313,0.00016438,2]
[332665872,1721413839306,-3265.25,0.00016438,2]
[332665873,1721413839318,-500.0,0.00016438,2]
[332665874,1721413839329,-500.0,0.00016438,2]
[332665875,1721413839340,-509.36,0.00016438,2]
[332665876,1721413839350,-502.37731771,0.00016438,2]
[332665877,1721413839363,-20969.49,0.00016438,2]
[332665878,1721413839373,-500.0,0.00016438,2]
[332665879,1721413839385,-4370.76,0.00016438,2]
[332665880,1721413839397,-629.74,0.00016438,2]
[332665881,1721413839409,-2259.2,0.00016438,2]
[332665882,1721413839420,-500.0,0.00016438,2]
[332665883,1721413839432,-671.87,0.00016438,2]
[332665884,1721413839445,-943.77,0.00016438,2]
[332665885,1721413839457,-500.0,0.00016438,2]
[332665886,1721413839469,-6270.07,0.00016438,2]
[332665887,1721413839481,-1394.75,0.00016438,2]
[332665888,1721413839491,-500.0,0.00016438,2]
[332665889,1721413839500,-500.0,0.00016438,2]
[332665890,1721413839510,-500.0,0.00016438,2]
[332665891,1721413839520,-3531.56,0.00016438,2]
[332665892,1721413839531,-500.0,0.00016438,2]
[332665893,1721413839544,-500.0,0.00016438,2]
[332665894,1721413839556,-1332.18,0.00016438,2]
[332665895,1721413839568,-598.62,0.00016438,2]
[332665896,1721413839578,-426.48584677,0.00016438,2]
[332665897,1721413839588,-875.07,0.00016438,2]
[332665898,1721413839601,-7581.23,0.00016438,2]
[332665899,1721413839612,-500.0,0.00016438,2]
[332665900,1721413839625,-501.86511888,0.00016438,2]
[332665901,1721413839636,-6242.85,0.00016438,2]
[332665902,1721413839647,-2105.65,0.00016438,2]
[332665903,1721413839657,-1336.33,0.00016438,2]
[332665904,1721413839667,-1609.79,0.00016438,2]
[332665905,1721413839678,-2305.39,0.00016438,2]
[332665906,1721413839688,-3993.8,0.00016438,2]
[332665907,1721413839700,-609.85790047,0.00016438,2]
[332665908,1721413839711,-500.0,0.00016438,2]
[332665909,1721413839722,-633.37,0.00016438,2]
[332665910,1721413839735,-15063.64,0.00016438,2]
[332665911,1721413839746,-536.78,0.00016438,2]
[332665912,1721413839757,-532.85699104,0.00016438,2]
[332665913,1721413839768,-500.0,0.00016438,2]
[332665914,1721413839778,-500.0,0.00016438,2]
[332665915,1721413839789,-798.11,0.00016438,2]
[332665916,1721413839800,-500.0,0.00016438,2]
[332665917,1721413839811,-5522.76,0.00016438,2]
[332665918,1721413839822,-500.0,0.00016438,2]
[332665919,1721413839833,-500.0,0.00016438,2]
[332665920,1721413839844,-500.0,0.00016438,2]
[332665921,1721413839855,-1305.57,0.00016438,2]
[332665922,1721413839866,-1578.51,0.00016438,2]
[332665923,1721413839880,-500.0,0.00016438,2]
[332665924,1721413839890,-339.06611891,0.00016438,2]
[332665925,1721413839901,-501.5884538,0.00016438,2]
[332665926,1721413839913,-2080.61,0.00016438,2]
[332665927,1721413839925,-3804.14,0.00016438,2]
[332665928,1721413839939,-500.0,0.00016438,2]
[332665929,1721413839954,-1637.87,0.00016438,2]